[Event "Titled Tuesday Blitz June 6 Late 2023"]
[White "Gritsenko, Nikolai"]
[Black "Sjugirov, Sanan"]
[WhiteFideId "14112493"]
[BlackFideId "4189302"]
[WhiteElo "2389"]
[BlackElo "2569"]
[Result "1-0"]
[Round "8"]
[TimeControl "180+2"]
[Date "2023.06.07"]
[WhiteClock "0:00:19"]
[BlackClock "0:00:02"]
[Board "15"]

1. d4 {[%clk 0:03:00]}  Nf6 {[%clk 0:03:00]} 2. Bg5 {[%clk 0:03:00]}  g6 {[%clk 0:02:58]} 3. Bxf6 {[%clk 0:02:59]}  exf6 {[%clk 0:02:59]} 4. e3 {[%clk 0:03:00]}  d5 {[%clk 0:02:58]} 5. c4 {[%clk 0:02:58]}  dxc4 {[%clk 0:02:51]} 6. Bxc4 {[%clk 0:02:58]}  Bd6 {[%clk 0:02:51]} 7. Ne2 {[%clk 0:02:53]}  f5 {[%clk 0:02:45]} 8. Nbc3 {[%clk 0:02:47]}  Nd7 {[%clk 0:02:41]} 9. a3 {[%clk 0:02:45]}  Nf6 {[%clk 0:02:36]} 10. h3 {[%clk 0:02:34]}  O-O {[%clk 0:02:32]} 11. O-O {[%clk 0:02:32]}  c6 {[%clk 0:02:25]} 12. Re1 {[%clk 0:02:24]}  Qe7 {[%clk 0:02:14]} 13. Nc1 {[%clk 0:02:00]}  Ne4 {[%clk 0:02:03]} 14. Nd3 {[%clk 0:01:52]}  Rd8 {[%clk 0:02:00]} 15. Qc2 {[%clk 0:01:36]}  Bc7 {[%clk 0:01:51]} 16. Rad1 {[%clk 0:01:31]}  Nf6 {[%clk 0:01:14]} 17. Ne5 {[%clk 0:01:17]}  Be6 {[%clk 0:01:13]} 18. Qb3 {[%clk 0:01:12]}  Bxc4 {[%clk 0:01:10]} 19. Nxc4 {[%clk 0:01:11]}  Nd5 {[%clk 0:01:00]} 20. Nd2 {[%clk 0:01:05]}  Nf6 {[%clk 0:00:49]} 21. Nf3 {[%clk 0:01:03]}  Bd6 {[%clk 0:00:45]} 22. d5 {[%clk 0:00:54]}  c5 {[%clk 0:00:44]} 23. a4 {[%clk 0:00:53]}  Rac8 {[%clk 0:00:40]} 24. Qc4 {[%clk 0:00:53]}  a6 {[%clk 0:00:39]} 25. e4 {[%clk 0:00:52]}  fxe4 {[%clk 0:00:38]} 26. Nxe4 {[%clk 0:00:52]}  Nxe4 {[%clk 0:00:39]} 27. Rxe4 {[%clk 0:00:52]}  Qd7 {[%clk 0:00:38]} 28. a5 {[%clk 0:00:42]}  Qb5 {[%clk 0:00:37]} 29. Qc3 {[%clk 0:00:39]}  Bf8 {[%clk 0:00:23]} 30. Ng5 {[%clk 0:00:37]}  Bg7 {[%clk 0:00:19]} 31. Qf3 {[%clk 0:00:36]}  Rd7 {[%clk 0:00:19]} 32. d6 {[%clk 0:00:35]}  h6 {[%clk 0:00:14]} 33. Re7 {[%clk 0:00:35]}  Rf8 {[%clk 0:00:08]} 34. Nxf7 {[%clk 0:00:27]}  Qa4 {[%clk 0:00:02]} 35. Qd5 {[%clk 0:00:22]}  Rxe7 {[%clk 0:00:01]} 36. dxe7 {[%clk 0:00:21]}  Rxf7 {[%clk 0:00:01]} 37. Qd8+ {[%clk 0:00:21]}  Rf8 {[%clk 0:00:01]} 38. exf8=Q+ {[%clk 0:00:20]}  Bxf8 {[%clk 0:00:02]} 39. Re1 {[%clk 0:00:19]} 1-0


[Site "https://www.chess.com"]

[Event "Titled Tuesday Blitz June 6 Late 2023"]
[White "Xiong, Jeffery"]
[Black "Sun, Rick"]
[WhiteFideId "2047640"]
[BlackFideId "30909481"]
[WhiteElo "2726"]
[BlackElo "2169"]
[Result "1-0"]
[Round "8"]
[TimeControl "180+2"]
[Date "2023.06.07"]
[WhiteClock "0:02:40"]
[BlackClock "0:01:31"]
[Board "17"]

1. e4 {[%clk 0:03:00]}  d6 {[%clk 0:02:59]} 2. d4 {[%clk 0:03:00]}  Nf6 {[%clk 0:03:00]} 3. Nc3 {[%clk 0:03:01]}  Nbd7 {[%clk 0:03:01]} 4. Nf3 {[%clk 0:03:01]}  e5 {[%clk 0:03:01]} 5. Bc4 {[%clk 0:03:02]}  Be7 {[%clk 0:03:01]} 6. a4 {[%clk 0:03:02]}  O-O {[%clk 0:03:01]} 7. O-O {[%clk 0:03:03]}  c6 {[%clk 0:03:02]} 8. Re1 {[%clk 0:03:03]}  Qc7 {[%clk 0:03:03]} 9. h3 {[%clk 0:03:03]}  h6 {[%clk 0:02:59]} 10. Be3 {[%clk 0:03:03]}  Re8 {[%clk 0:02:59]} 11. a5 {[%clk 0:02:57]}  Nf8 {[%clk 0:02:59]} 12. d5 {[%clk 0:02:57]}  Ng6 {[%clk 0:02:57]} 13. Nd2 {[%clk 0:02:56]}  Rf8 {[%clk 0:02:44]} 14. Bb3 {[%clk 0:02:56]}  Nh7 {[%clk 0:02:38]} 15. a6 {[%clk 0:02:56]}  c5 {[%clk 0:02:30]} 16. axb7 {[%clk 0:02:55]}  Bxb7 {[%clk 0:02:24]} 17. Nc4 {[%clk 0:02:55]}  a6 {[%clk 0:02:18]} 18. Na5 {[%clk 0:02:50]}  Bc8 {[%clk 0:02:15]} 19. Nc6 {[%clk 0:02:50]}  Bd7 {[%clk 0:02:06]} 20. Qd3 {[%clk 0:02:50]}  f5 {[%clk 0:01:59]} 21. Rxa6 {[%clk 0:02:40]}  Rxa6 {[%clk 0:01:41]} 22. Qxa6 {[%clk 0:02:40]}  f4 {[%clk 0:01:41]} 23. Bxc5 {[%clk 0:02:40]}  dxc5 {[%clk 0:01:31]} 24. d6+ {[%clk 0:02:40]} 1-0


[Site "https://www.chess.com"]

[Event "Titled Tuesday Blitz June 6 Late 2023"]
[White "Kleiman, Jake"]
[Black "Hansen, Eric"]
[WhiteFideId "2020041"]
[BlackFideId "2606771"]
[WhiteElo "2695"]
[BlackElo "2561"]
[Result "0-1"]
[Round "8"]
[TimeControl "180+2"]
[Date "2023.06.07"]
[WhiteClock "0:00:07"]
[BlackClock "0:00:07"]
[Board "18"]

1. e4 {[%clk 0:03:00]}  c5 {[%clk 0:02:45]} 2. c3 {[%clk 0:03:00]}  Nf6 {[%clk 0:02:42]} 3. e5 {[%clk 0:03:01]}  Nd5 {[%clk 0:02:42]} 4. Nf3 {[%clk 0:03:00]}  Nc6 {[%clk 0:02:43]} 5. Bc4 {[%clk 0:03:01]}  Nb6 {[%clk 0:02:43]} 6. Bb3 {[%clk 0:03:02]}  d5 {[%clk 0:02:43]} 7. exd6 {[%clk 0:03:02]}  Qxd6 {[%clk 0:02:43]} 8. O-O {[%clk 0:03:02]}  Be6 {[%clk 0:02:43]} 9. Bxe6 {[%clk 0:03:02]}  Qxe6 {[%clk 0:02:44]} 10. a4 {[%clk 0:03:03]}  Rd8 {[%clk 0:02:43]} 11. a5 {[%clk 0:03:00]}  Nd5 {[%clk 0:02:43]} 12. d4 {[%clk 0:03:00]}  Nc7 {[%clk 0:02:18]} 13. Qa4 {[%clk 0:02:52]}  cxd4 {[%clk 0:01:20]} 14. Nxd4 {[%clk 0:02:38]}  Qd7 {[%clk 0:01:20]} 15. Be3 {[%clk 0:01:49]}  Nxd4 {[%clk 0:01:17]} 16. Bxd4 {[%clk 0:01:41]}  Qxa4 {[%clk 0:01:16]} 17. Rxa4 {[%clk 0:01:42]}  Nb5 {[%clk 0:01:17]} 18. Bc5 {[%clk 0:01:32]}  Rc8 {[%clk 0:01:12]} 19. Be3 {[%clk 0:01:27]}  a6 {[%clk 0:01:11]} 20. Nd2 {[%clk 0:01:10]}  e5 {[%clk 0:01:12]} 21. Nc4 {[%clk 0:01:09]}  f6 {[%clk 0:01:12]} 22. Rd1 {[%clk 0:01:07]}  Be7 {[%clk 0:01:04]} 23. Nb6 {[%clk 0:01:04]}  Rd8 {[%clk 0:01:04]} 24. Rxd8+ {[%clk 0:01:03]}  Bxd8 {[%clk 0:01:04]} 25. Rc4 {[%clk 0:00:56]}  Bxb6 {[%clk 0:01:04]} 26. Bxb6 {[%clk 0:00:53]}  Kd7 {[%clk 0:01:04]} 27. Kf1 {[%clk 0:00:52]}  h5 {[%clk 0:01:03]} 28. Ke2 {[%clk 0:00:52]}  Ke6 {[%clk 0:00:52]} 29. Rc5 {[%clk 0:00:48]}  g5 {[%clk 0:00:49]} 30. Ke3 {[%clk 0:00:47]}  Rh7 {[%clk 0:00:46]} 31. Rc8 {[%clk 0:00:38]}  Nd6 {[%clk 0:00:44]} 32. Rc5 {[%clk 0:00:34]}  Rd7 {[%clk 0:00:43]} 33. g3 {[%clk 0:00:32]}  g4 {[%clk 0:00:43]} 34. b3 {[%clk 0:00:31]}  Nb5 {[%clk 0:00:37]} 35. Ke2 {[%clk 0:00:28]}  Kf5 {[%clk 0:00:37]} 36. Rc8 {[%clk 0:00:26]}  Ke4 {[%clk 0:00:35]} 37. Rc4+ {[%clk 0:00:25]}  Kf5 {[%clk 0:00:35]} 38. Rc8 {[%clk 0:00:25]}  Nd6 {[%clk 0:00:30]} 39. Rh8 {[%clk 0:00:23]}  Ne4 {[%clk 0:00:30]} 40. c4 {[%clk 0:00:18]}  Nc3+ {[%clk 0:00:29]} 41. Ke3 {[%clk 0:00:17]}  Nd1+ {[%clk 0:00:18]} 42. Ke2 {[%clk 0:00:17]}  Ke4 {[%clk 0:00:17]} 43. Rd8 {[%clk 0:00:16]}  Nc3+ {[%clk 0:00:17]} 44. Ke1 {[%clk 0:00:15]}  Rd3 {[%clk 0:00:09]} 45. Rxd3 {[%clk 0:00:11]}  Kxd3 {[%clk 0:00:10]} 46. Bd8 {[%clk 0:00:11]}  Ne4 {[%clk 0:00:10]} 47. Be7 {[%clk 0:00:08]}  Kc3 {[%clk 0:00:07]} 48. Ke2 {[%clk 0:00:09]}  Kxb3 {[%clk 0:00:07]} 49. Ke3 {[%clk 0:00:10]}  f5 {[%clk 0:00:08]} 50. c5 {[%clk 0:00:09]}  Kc4 {[%clk 0:00:08]} 51. Bd6 {[%clk 0:00:08]}  Kd5 {[%clk 0:00:08]} 52. Bb8 {[%clk 0:00:08]}  Nxc5 {[%clk 0:00:07]} 53. f3 {[%clk 0:00:08]}  gxf3 {[%clk 0:00:05]} 54. Kxf3 {[%clk 0:00:09]}  Nb3 {[%clk 0:00:05]} 55. Bc7 {[%clk 0:00:08]}  Nd4+ {[%clk 0:00:05]} 56. Ke3 {[%clk 0:00:08]}  Ne6 {[%clk 0:00:05]} 57. Bb6 {[%clk 0:00:08]}  Nc5 {[%clk 0:00:02]} 58. Kf3 {[%clk 0:00:08]}  Kc6 {[%clk 0:00:02]} 59. Ke3 {[%clk 0:00:08]}  Nd7 {[%clk 0:00:03]} 60. Ba7 {[%clk 0:00:07]}  b6 {[%clk 0:00:03]} 61. axb6 {[%clk 0:00:07]}  Nxb6 {[%clk 0:00:04]} 62. Bb8 {[%clk 0:00:08]}  Nd7 {[%clk 0:00:04]} 63. Ba7 {[%clk 0:00:08]}  a5 {[%clk 0:00:05]} 64. Kd3 {[%clk 0:00:08]}  Kd5 {[%clk 0:00:05]} 65. Kc3 {[%clk 0:00:08]}  Ke4 {[%clk 0:00:06]} 66. Kb3 {[%clk 0:00:07]}  Kf3 {[%clk 0:00:06]} 67. Ka4 {[%clk 0:00:06]}  Kg2 {[%clk 0:00:07]} 68. Kxa5 {[%clk 0:00:06]}  Kxh2 {[%clk 0:00:07]} 69. Kb5 {[%clk 0:00:06]}  Kxg3 {[%clk 0:00:07]} 70. Kc6 {[%clk 0:00:07]}  Nf6 {[%clk 0:00:07]} 71. Bb8 {[%clk 0:00:07]}  Kf4 {[%clk 0:00:07]} 0-1


[Site "https://www.chess.com"]

[Event "Titled Tuesday Blitz June 6 Late 2023"]
[White "Bitoon, Richard"]
[Black "Fernandez Guillen, Ernesto J."]
[WhiteFideId "5201110"]
[BlackFideId "3512428"]
[WhiteElo "2374"]
[BlackElo "2434"]
[Result "0-1"]
[Round "8"]
[TimeControl "180+2"]
[Date "2023.06.07"]
[WhiteClock "0:00:01"]
[BlackClock "0:00:56"]
[Board "24"]

1. e4 {[%clk 0:03:00]}  e5 {[%clk 0:02:56]} 2. Nf3 {[%clk 0:03:00]}  Nc6 {[%clk 0:02:52]} 3. Bc4 {[%clk 0:03:00]}  g6 {[%clk 0:02:49]} 4. b4 {[%clk 0:02:25]}  Bg7 {[%clk 0:02:32]} 5. b5 {[%clk 0:02:25]}  Nd4 {[%clk 0:02:31]} 6. c3 {[%clk 0:02:06]}  Nxf3+ {[%clk 0:02:28]} 7. Qxf3 {[%clk 0:02:07]}  Qf6 {[%clk 0:02:28]} 8. Qg3 {[%clk 0:01:59]}  d6 {[%clk 0:02:26]} 9. d3 {[%clk 0:01:59]}  h6 {[%clk 0:02:24]} 10. Nd2 {[%clk 0:01:59]}  g5 {[%clk 0:02:24]} 11. Nf1 {[%clk 0:01:58]}  Ne7 {[%clk 0:02:23]} 12. Ne3 {[%clk 0:01:57]}  Be6 {[%clk 0:02:24]} 13. h4 {[%clk 0:01:41]}  O-O-O {[%clk 0:02:11]} 14. Ng4 {[%clk 0:01:33]}  Qg6 {[%clk 0:02:07]} 15. h5 {[%clk 0:01:33]}  Qh7 {[%clk 0:02:07]} 16. Ne3 {[%clk 0:01:26]}  Kb8 {[%clk 0:02:05]} 17. Bxe6 {[%clk 0:01:13]}  fxe6 {[%clk 0:02:03]} 18. Qg4 {[%clk 0:01:13]}  Qg8 {[%clk 0:02:03]} 19. a4 {[%clk 0:01:09]}  Qf7 {[%clk 0:02:03]} 20. a5 {[%clk 0:01:09]}  Rhf8 {[%clk 0:02:03]} 21. O-O {[%clk 0:01:09]}  Ng8 {[%clk 0:02:02]} 22. b6 {[%clk 0:01:06]}  Nf6 {[%clk 0:01:57]} 23. Qd1 {[%clk 0:01:05]}  cxb6 {[%clk 0:01:52]} 24. axb6 {[%clk 0:01:00]}  a6 {[%clk 0:01:52]} 25. g4 {[%clk 0:01:00]}  Rc8 {[%clk 0:01:50]} 26. Qb3 {[%clk 0:00:59]}  Rc6 {[%clk 0:01:49]} 27. f3 {[%clk 0:00:58]}  Rfc8 {[%clk 0:01:45]} 28. Nc4 {[%clk 0:00:58]}  Bf8 {[%clk 0:01:41]} 29. Be3 {[%clk 0:00:58]}  Be7 {[%clk 0:01:41]} 30. Rfc1 {[%clk 0:00:52]}  Nxg4 {[%clk 0:01:34]} 31. fxg4 {[%clk 0:00:50]}  Qf3 {[%clk 0:01:34]} 32. Bf2 {[%clk 0:00:22]}  Qxg4+ {[%clk 0:01:30]} 33. Kf1 {[%clk 0:00:19]}  Qh3+ {[%clk 0:01:30]} 34. Ke2 {[%clk 0:00:18]}  Qxh5+ {[%clk 0:01:30]} 35. Kd2 {[%clk 0:00:18]}  Qh2 {[%clk 0:01:27]} 36. Rf1 {[%clk 0:00:18]}  g4 {[%clk 0:01:25]} 37. Ne3 {[%clk 0:00:10]}  Bg5 {[%clk 0:01:23]} 38. Qxe6 {[%clk 0:00:03]}  g3 {[%clk 0:01:21]} 39. Qg4 {[%clk 0:00:02]}  gxf2 {[%clk 0:01:19]} 40. Rac1 {[%clk 0:00:02]}  Rxb6 {[%clk 0:01:10]} 41. Rc2 {[%clk 0:00:03]}  Rb1 {[%clk 0:01:06]} 42. Ke2 {[%clk 0:00:02]}  Bxe3 {[%clk 0:00:57]} 43. Rxb1 {[%clk 0:00:02]}  f1=Q+ {[%clk 0:00:56]} 44. Kxf1 {[%clk 0:00:02]}  Qxc2 {[%clk 0:00:56]} 45. Re1 {[%clk 0:00:01]}  Qxd3+ {[%clk 0:00:56]} 0-1


[Site "https://www.chess.com"]

[Event "Titled Tuesday Blitz June 6 Late 2023"]
[White "Prohaszka, Peter"]
[Black "Mortazavi, Ali"]
[WhiteFideId "726265"]
[BlackFideId "401323"]
[WhiteElo "2626"]
[BlackElo "2339"]
[Result "1-0"]
[Round "8"]
[TimeControl "180+2"]
[Date "2023.06.07"]
[WhiteClock "0:00:04"]
[BlackClock "0:00:11"]
[Board "26"]

1. d4 {[%clk 0:02:52]}  Nf6 {[%clk 0:02:59]} 2. Nf3 {[%clk 0:02:50]}  g6 {[%clk 0:03:00]} 3. Bg5 {[%clk 0:02:48]}  Bg7 {[%clk 0:03:00]} 4. c3 {[%clk 0:02:48]}  O-O {[%clk 0:03:01]} 5. Nbd2 {[%clk 0:02:47]}  d6 {[%clk 0:02:57]} 6. e4 {[%clk 0:02:48]}  Nc6 {[%clk 0:02:57]} 7. h3 {[%clk 0:02:42]}  e5 {[%clk 0:02:54]} 8. dxe5 {[%clk 0:02:36]}  Nxe5 {[%clk 0:02:54]} 9. Nxe5 {[%clk 0:02:36]}  dxe5 {[%clk 0:02:54]} 10. Be2 {[%clk 0:02:32]}  h6 {[%clk 0:02:49]} 11. Be3 {[%clk 0:02:32]}  Be6 {[%clk 0:02:45]} 12. O-O {[%clk 0:02:31]}  Qe7 {[%clk 0:02:45]} 13. Qc2 {[%clk 0:02:28]}  Rfd8 {[%clk 0:02:43]} 14. Rfd1 {[%clk 0:02:25]}  Nd7 {[%clk 0:02:29]} 15. Bc4 {[%clk 0:02:23]}  Nb6 {[%clk 0:02:18]} 16. Bxe6 {[%clk 0:02:22]}  Qxe6 {[%clk 0:02:19]} 17. Qb3 {[%clk 0:02:09]}  Qc6 {[%clk 0:02:19]} 18. a4 {[%clk 0:02:05]}  Bf8 {[%clk 0:01:50]} 19. a5 {[%clk 0:01:13]}  Nd7 {[%clk 0:01:50]} 20. Qc4 {[%clk 0:00:54]}  Bc5 {[%clk 0:01:33]} 21. Bxh6 {[%clk 0:00:49]}  Qf6 {[%clk 0:01:33]} 22. Nf3 {[%clk 0:00:42]}  Qc6 {[%clk 0:01:24]} 23. Qd5 {[%clk 0:00:29]}  Nf6 {[%clk 0:01:10]} 24. Qxc6 {[%clk 0:00:28]}  bxc6 {[%clk 0:01:10]} 25. Rxd8+ {[%clk 0:00:25]}  Rxd8 {[%clk 0:01:09]} 26. Bg5 {[%clk 0:00:24]}  Rd6 {[%clk 0:01:06]} 27. b4 {[%clk 0:00:06]}  Bxf2+ {[%clk 0:00:57]} 28. Kxf2 {[%clk 0:00:07]}  Nxe4+ {[%clk 0:00:57]} 29. Ke1 {[%clk 0:00:08]}  Nxc3 {[%clk 0:00:57]} 30. Be7 {[%clk 0:00:07]}  Re6 {[%clk 0:00:49]} 31. Bc5 {[%clk 0:00:08]}  a6 {[%clk 0:00:50]} 32. Rc1 {[%clk 0:00:07]}  Nd5 {[%clk 0:00:45]} 33. Rd1 {[%clk 0:00:06]}  Kg7 {[%clk 0:00:41]} 34. Kf2 {[%clk 0:00:07]}  f5 {[%clk 0:00:37]} 35. Re1 {[%clk 0:00:05]}  Nf4 {[%clk 0:00:32]} 36. Kg1 {[%clk 0:00:03]}  Nd3 {[%clk 0:00:28]} 37. Rd1 {[%clk 0:00:04]}  e4 {[%clk 0:00:27]} 38. Nd4 {[%clk 0:00:04]}  Rf6 {[%clk 0:00:21]} 39. Ne2 {[%clk 0:00:03]}  Kf7 {[%clk 0:00:19]} 40. Nc1 {[%clk 0:00:04]}  Ne5 {[%clk 0:00:17]} 41. Rd8 {[%clk 0:00:04]}  Re6 {[%clk 0:00:14]} 42. Ne2 {[%clk 0:00:04]}  g5 {[%clk 0:00:14]} 43. Nd4 {[%clk 0:00:04]}  Rg6 {[%clk 0:00:10]} 44. Rf8+ {[%clk 0:00:05]}  Kg7 {[%clk 0:00:10]} 45. Nxf5+ {[%clk 0:00:05]}  Kh7 {[%clk 0:00:11]} 46. Re8 {[%clk 0:00:04]}  Nd3 {[%clk 0:00:10]} 47. Bd4 {[%clk 0:00:04]}  g4 {[%clk 0:00:11]} 48. Rh8# {[%clk 0:00:04]} 1-0


[Site "https://www.chess.com"]

[Event "Titled Tuesday Blitz June 6 Late 2023"]
[White "Jimenez Almeida, Luis David"]
[Black "Horvath, Dominik"]
[WhiteFideId "22242244"]
[BlackFideId "1642561"]
[WhiteElo "2245"]
[BlackElo "2407"]
[Result "1-0"]
[Round "8"]
[TimeControl "180+2"]
[Date "2023.06.07"]
[WhiteClock "0:00:18"]
[BlackClock "0:00:20"]
[Board "28"]

1. e4 {[%clk 0:03:00]}  e6 {[%clk 0:02:55]} 2. d4 {[%clk 0:03:00]}  d5 {[%clk 0:02:56]} 3. e5 {[%clk 0:03:00]}  c5 {[%clk 0:02:56]} 4. c3 {[%clk 0:03:01]}  Nc6 {[%clk 0:02:56]} 5. Nf3 {[%clk 0:03:01]}  Bd7 {[%clk 0:02:56]} 6. Be2 {[%clk 0:03:00]}  Nge7 {[%clk 0:02:56]} 7. O-O {[%clk 0:02:58]}  cxd4 {[%clk 0:02:54]} 8. cxd4 {[%clk 0:02:58]}  Nf5 {[%clk 0:02:55]} 9. Nc3 {[%clk 0:02:54]}  Be7 {[%clk 0:02:55]} 10. a3 {[%clk 0:02:54]}  O-O {[%clk 0:02:55]} 11. b4 {[%clk 0:02:54]}  Rc8 {[%clk 0:02:55]} 12. Bb2 {[%clk 0:02:49]}  Nh4 {[%clk 0:02:54]} 13. Nxh4 {[%clk 0:02:32]}  Bxh4 {[%clk 0:02:54]} 14. Rc1 {[%clk 0:02:28]}  Ne7 {[%clk 0:02:50]} 15. Bd3 {[%clk 0:02:17]}  Ng6 {[%clk 0:02:29]} 16. g3 {[%clk 0:02:07]}  Be7 {[%clk 0:02:10]} 17. Qh5 {[%clk 0:01:51]}  Qb6 {[%clk 0:02:07]} 18. Ne2 {[%clk 0:01:36]}  Bb5 {[%clk 0:02:07]} 19. Qf3 {[%clk 0:01:34]}  Qa6 {[%clk 0:02:04]} 20. Bxb5 {[%clk 0:01:27]}  Qxb5 {[%clk 0:02:04]} 21. h4 {[%clk 0:01:25]}  Rfd8 {[%clk 0:01:38]} 22. h5 {[%clk 0:01:13]}  Nf8 {[%clk 0:01:38]} 23. Rc3 {[%clk 0:01:00]}  h6 {[%clk 0:01:35]} 24. Rfc1 {[%clk 0:00:58]}  Rxc3 {[%clk 0:01:35]} 25. Rxc3 {[%clk 0:00:58]}  Qd7 {[%clk 0:01:26]} 26. Qd3 {[%clk 0:00:54]}  Rc8 {[%clk 0:01:21]} 27. Qc2 {[%clk 0:00:53]}  Rxc3 {[%clk 0:01:21]} 28. Nxc3 {[%clk 0:00:53]}  Qc7 {[%clk 0:01:15]} 29. Qb3 {[%clk 0:00:48]}  Nd7 {[%clk 0:01:13]} 30. Nb5 {[%clk 0:00:43]}  Qb6 {[%clk 0:01:08]} 31. Qd3 {[%clk 0:00:36]}  a6 {[%clk 0:01:09]} 32. Nc3 {[%clk 0:00:36]}  Qc7 {[%clk 0:01:07]} 33. Na4 {[%clk 0:00:35]}  a5 {[%clk 0:00:56]} 34. Nc5 {[%clk 0:00:33]}  axb4 {[%clk 0:00:48]} 35. axb4 {[%clk 0:00:34]}  Nb6 {[%clk 0:00:38]} 36. Qb5 {[%clk 0:00:28]}  Qc8 {[%clk 0:00:39]} 37. Qxb6 {[%clk 0:00:27]}  Bxc5 {[%clk 0:00:26]} 38. dxc5 {[%clk 0:00:24]}  Qa8 {[%clk 0:00:24]} 39. Qa5 {[%clk 0:00:24]}  Qc8 {[%clk 0:00:21]} 40. Bd4 {[%clk 0:00:22]}  Qd7 {[%clk 0:00:20]} 41. b5 {[%clk 0:00:22]}  Qe7 {[%clk 0:00:19]} 42. c6 {[%clk 0:00:21]}  bxc6 {[%clk 0:00:20]} 43. bxc6 {[%clk 0:00:22]}  Qg5 {[%clk 0:00:19]} 44. c7 {[%clk 0:00:20]}  Qc1+ {[%clk 0:00:19]} 45. Kg2 {[%clk 0:00:20]}  Kh7 {[%clk 0:00:20]} 46. Qc5 {[%clk 0:00:19]}  Qe1 {[%clk 0:00:20]} 47. Qc2+ {[%clk 0:00:18]} 1-0


[Site "https://www.chess.com"]

[Event "Titled Tuesday Blitz June 6 Late 2023"]
[White "Manukyan, Sargis A."]
[Black "Wagner, Dennis"]
[WhiteFideId "13303970"]
[BlackFideId "24650684"]
[WhiteElo "2187"]
[BlackElo "2478"]
[Result "1-0"]
[Round "8"]
[TimeControl "180+2"]
[Date "2023.06.07"]
[WhiteClock "0:01:36"]
[BlackClock "0:00:02"]
[Board "31"]

1. d4 {[%clk 0:03:00]}  Nf6 {[%clk 0:02:59]} 2. c4 {[%clk 0:03:01]}  e6 {[%clk 0:02:59]} 3. Nc3 {[%clk 0:03:02]}  Bb4 {[%clk 0:02:58]} 4. a3 {[%clk 0:03:02]}  Bxc3+ {[%clk 0:02:58]} 5. bxc3 {[%clk 0:03:03]}  c5 {[%clk 0:02:46]} 6. e3 {[%clk 0:03:04]}  O-O {[%clk 0:02:40]} 7. Bd3 {[%clk 0:03:04]}  Nc6 {[%clk 0:02:31]} 8. Ne2 {[%clk 0:03:03]}  b6 {[%clk 0:02:18]} 9. O-O {[%clk 0:03:03]}  d6 {[%clk 0:02:07]} 10. e4 {[%clk 0:03:03]}  e5 {[%clk 0:02:07]} 11. f4 {[%clk 0:03:01]}  exd4 {[%clk 0:02:05]} 12. cxd4 {[%clk 0:03:01]}  cxd4 {[%clk 0:02:02]} 13. Bb2 {[%clk 0:02:56]}  Bg4 {[%clk 0:01:47]} 14. h3 {[%clk 0:02:51]}  Bxe2 {[%clk 0:01:47]} 15. Qxe2 {[%clk 0:02:52]}  Re8 {[%clk 0:01:48]} 16. Rae1 {[%clk 0:02:50]}  Rc8 {[%clk 0:01:46]} 17. Qf2 {[%clk 0:02:46]}  Nd7 {[%clk 0:01:39]} 18. Bb1 {[%clk 0:02:34]}  Nc5 {[%clk 0:01:31]} 19. g4 {[%clk 0:02:33]}  d3 {[%clk 0:00:55]} 20. Qf3 {[%clk 0:02:33]}  Na5 {[%clk 0:00:49]} 21. Rc1 {[%clk 0:02:21]}  d2 {[%clk 0:00:32]} 22. Qc3 {[%clk 0:02:10]}  f6 {[%clk 0:00:30]} 23. Qxd2 {[%clk 0:02:10]}  Kh8 {[%clk 0:00:24]} 24. Qd5 {[%clk 0:02:08]}  Qe7 {[%clk 0:00:19]} 25. Rce1 {[%clk 0:02:07]}  Na4 {[%clk 0:00:18]} 26. Ba1 {[%clk 0:02:03]}  Nxc4 {[%clk 0:00:18]} 27. Qh5 {[%clk 0:02:01]}  Nd2 {[%clk 0:00:14]} 28. e5 {[%clk 0:02:02]}  Nxb1 {[%clk 0:00:10]} 29. exf6 {[%clk 0:02:02]}  Qd7 {[%clk 0:00:02]} 30. fxg7+ {[%clk 0:01:59]}  Kg8 {[%clk 0:00:02]} 31. Rxb1 {[%clk 0:01:54]}  Nc5 {[%clk 0:00:02]} 32. Rbe1 {[%clk 0:01:53]}  Qf7 {[%clk 0:00:02]} 33. Qh6 {[%clk 0:01:51]}  Ne4 {[%clk 0:00:02]} 34. f5 {[%clk 0:01:46]}  d5 {[%clk 0:00:03]} 35. f6 {[%clk 0:01:46]}  Rc2 {[%clk 0:00:03]} 36. Qf4 {[%clk 0:01:42]}  Rec8 {[%clk 0:00:03]} 37. g5 {[%clk 0:01:37]}  Rd2 {[%clk 0:00:02]} 38. Rxe4 {[%clk 0:01:36]}  Rcc2 {[%clk 0:00:02]} 39. Qb8+ {[%clk 0:01:36]} 1-0


[Site "https://www.chess.com"]

[Event "Titled Tuesday Blitz June 6 Late 2023"]
[White "Becerra, Juan David"]
[Black "Martins, Bruno Andre Leite"]
[WhiteFideId "4404998"]
[BlackFideId "1942255"]
[WhiteElo "2304"]
[BlackElo "2241"]
[Result "0-1"]
[Round "8"]
[TimeControl "180+2"]
[Date "2023.06.07"]
[WhiteClock "0:01:23"]
[BlackClock "0:01:42"]
[Board "34"]

1. e4 {[%clk 0:02:58]}  e6 {[%clk 0:02:51]} 2. d4 {[%clk 0:02:52]}  d5 {[%clk 0:02:52]} 3. Nd2 {[%clk 0:02:52]}  c5 {[%clk 0:02:49]} 4. exd5 {[%clk 0:02:52]}  Qxd5 {[%clk 0:02:45]} 5. Ngf3 {[%clk 0:02:51]}  cxd4 {[%clk 0:02:44]} 6. Bc4 {[%clk 0:02:51]}  Qd6 {[%clk 0:02:45]} 7. O-O {[%clk 0:02:50]}  Nf6 {[%clk 0:02:45]} 8. Nb3 {[%clk 0:02:50]}  Nc6 {[%clk 0:02:45]} 9. Nbxd4 {[%clk 0:02:50]}  Nxd4 {[%clk 0:02:45]} 10. Qxd4 {[%clk 0:02:51]}  Qxd4 {[%clk 0:02:43]} 11. Nxd4 {[%clk 0:02:51]}  Bd7 {[%clk 0:02:43]} 12. Bf4 {[%clk 0:02:48]}  Rc8 {[%clk 0:02:38]} 13. Bb3 {[%clk 0:02:47]}  Bc5 {[%clk 0:02:36]} 14. Rad1 {[%clk 0:02:47]}  O-O {[%clk 0:02:26]} 15. Rfe1 {[%clk 0:02:17]}  Rfd8 {[%clk 0:02:22]} 16. Bg5 {[%clk 0:02:16]}  h6 {[%clk 0:02:14]} 17. Bh4 {[%clk 0:02:03]}  g5 {[%clk 0:02:03]} 18. Bg3 {[%clk 0:02:03]}  Be8 {[%clk 0:02:00]} 19. h3 {[%clk 0:01:23]}  Rxd4 {[%clk 0:01:42]} 0-1


[Site "https://www.chess.com"]